[Event "9. Korbacher Open 2017"]
[Site "Korbach"]
[Date "2017.10.21"]
[Round "4"]
[White "Kirchner, Markus"]
[Black "Mohammadi, Sholeh"]
[Result "1-0"]
[ECO "B01"]
[WhiteElo "1884"]
[BlackElo "1190"]
[Annotator "NA RC"]
[PlyCount "95"]
[EventDate "2017.??.??"]
[EventType "swiss"]
[EventCountry "GER"]
[SourceTitle "playchess.com"]
[Source "ChessBase"]
[SourceQuality "1"]
[TimeControl "40/5400+30:1800+30"]

1. e4 {[%emt 0:00:00]} d5 {[%emt 0:13:20]} 2. exd5 {[%emt 0:00:00]} Qxd5 {[%emt 0:00:29]} 3. Nc3 {[%emt 0:00:21]} Qd8 {[%emt 0:01:16]} 4. Bc4 {[%emt 0:00:30]} a6 {[%emt 0:00:00]} 5. d4 {[%emt 0:01:12]} e6 {[%emt 0:01:08]} 6. a4 {[%emt 0:00:01]} Bb4 7. Nge2 {[%emt 0:00:48]} b6 {[%emt 0:04:38]} 8. O-O {[%emt 0:00:35]} Bb7 {[%emt 0:00:58]} 9. f3 {[%emt 0:00:53]} (9. Nf4 $14) 9... Nc6 {[%emt 0:03:23]} 10. Ne4 {[%emt 0:01:55]} Nge7 11. c3 {[%emt 0:00:42]} Bd6 {[%emt 0:04:02]} 12. Nxd6+ {[%emt 0:00:47]} cxd6 {[%emt 0:00:20]} 13. Bd3 {[%emt 0:01:00]} d5 {[%emt 0:07:05]} 14. Qe1 {[%emt 0:00:43]} f5 $2 {[%emt 0:03:29]} (14... O-O $14) 15. Nf4 {[%emt 0:01:01]} Bc8 16. Nxe6 {[%emt 0:01:23]} Bxe6 {[%emt 0:01:04]} 17. Qxe6 {[%emt 0:00:03]} Qd7 {[%emt 0:03:13]} 18. Qxd7+ {[%emt 0:00:15]} Kxd7 {[%emt 0:03:48]} 19. Bf4 {[%emt 0:00:15]} h6 {[%emt 0:00:23]} 20. h4 {[%emt 0:00:40]} g5 {[%emt 0:00:11]} 21. hxg5 {[%emt 0:00:27]} hxg5 {[%emt 0:03:20]} 22. Bxg5 {[%emt 0:00:25]} Rh5 {[%emt 0:04:43]} 23. f4 {[%emt 0:00:48]} a5 {[%emt 0:00:50]} 24. Rfe1 {[%emt 0:00:37]} Rah8 {[%emt 0:03:57]} 25. Kf2 {[%emt 0:01:06]} Rh2 {[%emt 0:06:03]} 26. Re3 {[%emt 0:00:52]} Rf8 {[%emt 0:01:01]} 27. Rae1 {[%emt 0:00:23]} Rf7 {[%emt 0:01:53]} 28. Bb5 {[%emt 0:00:37]} Kd6 29. Re6+ {[%emt 0:00:27]} Kc7 {[%emt 0:01:27]} 30. Bxe7 {[%emt 0:00:15]} Nxe7 {[%emt 0:00:50]} 31. Rxe7+ {[%emt 0:00:04]} Rxe7 {[%emt 0:01:58]} 32. Rxe7+ {[%emt 0:00:02]} Kd6 {[%emt 0:01:26]} 33. Rb7 {[%emt 0:00:44]} Rh4 {[%emt 0:00:14]} 34. Kg3 {[%emt 0:00:16]} Rg4+ {[%emt 0:01:56]} 35. Kf3 {[%emt 0:00:05]} Rxf4+ {[%emt 0:01:28]} 36. Kxf4 {[%emt 0:00:09]} Ke6 {[%emt 0:00:22]} 37. Rxb6+ {[%emt 0:00:16]} Ke7 38. Bc4 {[%emt 0:00:15]} dxc4 {[%emt 0:01:42]} 39. Kxf5 {[%emt 0:00:03]} Kd7 40. Re6 {[%emt 0:00:06]} Kc7 {[%emt 0:31:25]} 41. Ke5 {[%emt 0:30:05]} Kd7 {[%emt 0:00:12]} 42. Kd5 {[%emt 0:00:09]} Kc7 43. Kc5 {[%emt 0:00:06]} Kd7 {[%emt 0:01:08]} 44. Re5 {[%emt 0:00:04]} Kc7 {[%emt 0:00:23]} 45. Re7+ {[%emt 0:00:08]} Kd8 46. Kd6 {[%emt 0:00:12]} Kc8 {[%emt 0:01:03]} 47. Kc6 {[%emt 0:00:09]} Kd8 {[%emt 0:00:10]} 48. Re6 {[%emt 0:00:08]} 1-0

[Event "9. Korbacher Open 2017"]
[Site "Korbach"]
[Date "2017.10.21"]
[Round "4"]
[White "Launert, Martin"]
[Black "Rubina, Tatiana"]
[Result "0-1"]
[ECO "B34"]
[WhiteElo "1879"]
[BlackElo "2022"]
[Annotator "NA RC"]
[PlyCount "48"]
[EventDate "2017.??.??"]
[EventType "swiss"]
[EventCountry "GER"]
[SourceTitle "playchess.com"]
[Source "ChessBase"]
[SourceQuality "1"]
[TimeControl "40/5400+30:1800+30"]

{[%evp 13,48,83,106,51,74,44,47,-169,-181,-198,33,0,58,48,57,32767,32767,32767,32767,32767,260,149,160,0,110,81,104,112,91,97,32767,32767,104,125,147,-658,-668]} 1. e4 {[%emt 0:00:00]} c5 {[%emt 0:00:04]} 2. Nf3 {[%emt 0:00:00]} Nc6 {[%emt 0:00:10]} 3. d4 {[%emt 0:00:06]} cxd4 {[%emt 0:00:03]} 4. Nxd4 {[%emt 0:00:07]} Nf6 {[%emt 0:00:12]} 5. Nc3 {[%emt 0:01:45]} g6 {[%emt 0:00:40]} 6. Nxc6 {[%emt 0:03:49]} bxc6 {[%emt 0:00:44]} 7. e5 {[%emt 0:03:32]} Ng8 {[%emt 0:00:40]} 8. Bf4 {[%emt 0:08:08] B34: Sicilian: Accelerated Dragon with 5 Nc3: sidelines} (8. Bc4 $16 Qc7 9. Bf4 Bg7 10. Bxf7+ Kd8 11. Qe2 Nh6 12. Bb3 Rf8 13. g3 Rb8 14. O-O-O Rb4 15. Bd2 Qb8 16. f4 {1-0 (28) Popilski,G (2542)-Kamsky,G (2660) Calgary 2016}) 8... Qb6 $146 {[%emt 0:05:43]} ({Predecessor:} 8... Bg7 9. Qf3 Nh6 10. Bc4 O-O 11. O-O-O Qb6 12. Rd3 Nf5 13. g4 Nd4 14. Qe4 Ne6 15. Bxe6 fxe6 {1-0 (27) Agrest,I (2121)-Narmontas,M (2367) Oslo 2007}) 9. Rb1 {[%emt 0:01:42]} ({White should play} 9. Qd2 $16) 9... Bg7 {[%emt 0:00:35]} 10. Bc4 $2 {[%emt 0:14:42]} (10. Qf3 $14 {behält die Oberhand.}) 10... Qb4 {[%emt 0:27:14]} 11. Qd3 {[%emt 0:00:53] [#]} Ba6 $2 {[%emt 0:04:46]} (11... d5 $1 $19 12. exd6 Bf5) 12. b3 {[%emt 0:04:30]} (12. Rd1 $5 {[%cal Rd3d7]} Rd8 13. b3 $14 (13. Bxa6 Qxf4 14. O-O Bxe5 $11)) 12... Bxc4 {[%emt 0:00:47]} (12... d5 $5 {[%cal Rd5c4]} 13. Bxa6 Qxf4 $11) 13. bxc4 {[%emt 0:00:56]} Qa5 {[%emt 0:00:13]} 14. O-O {[%emt 0:22:22]} Bxe5 {[%emt 0:00:48]} 15. Bxe5 {[%emt 0:00:52]} Qxe5 {[%emt 0:00:03]} 16. Rfe1 {[%emt 0:01:31]} Qc7 $2 {[%emt 0:17:36] [#]} (16... Qg7 $14) 17. Qd4 {[%emt 0:05:50]} (17. Ne4 $1 $18) 17... f6 {[%emt 0:00:23]} 18. c5 $2 {[%emt 0:02:06]} ({White should play} 18. Ne4 $16) 18... Rb8 {[%emt 0:04:15] [#]} (18... Kf8 $11) 19. Rxb8+ $1 {[%emt 0:02:36]} Qxb8 {[%emt 0:00:02] [#]} 20. Ne4 $1 {[%emt 0:01:25]} Qd8 {[%emt 0:05:18] [#]} 21. Nxf6+ $1 {[%emt 0:03:05]} Nxf6 {[%emt 0:00:09]} 22. Qxf6 {[%emt 0:00:07]} Rf8 {[%emt 0:00:06]} 23. Qg7 {[%emt 0:00:27]} e6 {[%emt 0:00:51]} 24. Qxh7 $4 {[%emt 0:02:06]} (24. Rb1 $18) 24... Qf6 $19 {[%emt 0:00:26]} 0-1

[Event "9. Korbacher Open 2017"]
[Site "Korbach"]
[Date "2017.10.21"]
[Round "4"]
[White "Timar-Geng, Zoltan"]
[Black "Lesny, Florian"]
[Result "1-0"]
[ECO "D00"]
[WhiteElo "1859"]
[BlackElo "1997"]
[Annotator "NA"]
[PlyCount "65"]
[EventDate "2017.??.??"]
[EventType "swiss"]
[EventCountry "GER"]
[SourceTitle "playchess.com"]
[Source "ChessBase"]
[SourceQuality "1"]
[TimeControl "40/5400+30:1800+30"]

{[%evp 8,62,11,0,14,-4,0,-31,-8,-7,-15,32767,0,-43,-9,-53,-22,-25,-12,-35,-37,-34,-56,-67,0,-11,27,18,29,28,32767,103,130,32767,431,435,693,160,683,201,768,714,700,32767,1644,32767,32767,32767,32767,32767,564,32767,32767,223,500,547,29996]} 1. d4 {[%emt 0:00:00]} d5 {[%emt 0:00:07]} 2. Bf4 {[%emt 0:00:00]} Nf6 {[%emt 0:00:12]} 3. e3 {[%emt 0:00:00]} e6 {[%emt 0:00:06]} 4. Nd2 {[%emt 0:00:32]} c5 {[%emt 0:00:23]} 5. c3 {[%emt 0:00:06]} Nc6 {[%emt 0:00:22]} 6. Bd3 {[%emt 0:01:15]} Bd6 {[%emt 0:00:57]} 7. Bg3 {[%emt 0:00:07]} b6 {[%emt 0:02:09]} 8. Ngf3 {[%emt 0:00:15]} O-O {[%emt 0:01:00]} 9. Ne5 {[%emt 0:00:56]} Bb7 {[%emt 0:02:05]} 10. f4 {[%emt 0:02:32] D02: 1 d4 d5 2 Nf3 sidelines, including 2...Nf6 3 g3 and 2...Nf6 3 Bf4} (10. O-O Qc7 11. f4 Ne7 12. Qb1 Qc8 13. Bh4 Nf5 14. Bxf5 exf5 15. Bxf6 gxf6 16. Nef3 Qe6 17. Re1 Ba6 18. Nh4 cxd4 19. exd4 {1-0 (28) Korobov,A (2692)-Dominguez Perez,L (2739) Doha 2016}) 10... Ne7 {[%emt 0:07:46] LiveBook: 72 Games} 11. O-O {[%emt 0:03:39]} Nf5 {[%emt 0:01:25]} 12. Bf2 {[%emt 0:04:15]} Be7 {[%emt 0:02:59]} 13. g4 {[%emt 0:14:49]} Nd6 $1 {[%emt 0:00:14]} 14. g5 $146 {[%emt 0:00:08]} ({Predecessor:} 14. Bh4 Nfe4 15. Bxe7 Qxe7 16. g5 f6 17. Bxe4 dxe4 18. gxf6 gxf6 {0-1 (38) Slobodnik,M (2097)-Ondrus,M (2296) Slovakia 2016}) 14... Nfe4 {[%emt 0:00:08]} 15. Nxe4 {[%emt 0:05:00]} Nxe4 {[%emt 0:09:28]} (15... dxe4 $15 16. Be2 cxd4 17. cxd4 f6 18. gxf6 gxf6) 16. Qh5 {[%emt 0:02:30]} Rc8 {[%emt 0:05:53]} 17. Be1 {[%emt 0:04:53]} c4 {[%emt 0:07:18]} 18. Bc2 {[%emt 0:02:40]} Bd6 {[%emt 0:23:08] [#]} 19. Rf3 $1 {[%emt 0:04:27]} Bxe5 {[%emt 0:02:15]} 20. dxe5 {[%emt 0:09:26]} f6 $2 {[%emt 0:04:23]} (20... Kh8 {was called for.} 21. Rd1 Qe8 22. Bxe4 dxe4) 21. Rh3 {[%emt 0:03:33]} fxg5 {[%emt 0:01:21]} (21... h6 $142 22. exf6 (22. gxh6 Rc7 $18) 22... Qc7) 22. Qxh7+ {[%emt 0:04:58]} Kf7 {[%emt 0:00:02]} 23. Qh5+ $2 {[%emt 0:01:57]} (23. Bxe4 dxe4 24. f5) 23... Kg8 $2 {[%emt 0:06:01]} (23... Ke7 24. Bxe4 (24. fxg5 Rf5 $16) 24... dxe4) 24. Bxe4 {[%emt 0:01:10]} dxe4 {[%emt 0:01:13]} 25. fxg5 {[%emt 0:02:12]} Qd3 {[%emt 0:07:17]} 26. Qh7+ {[%emt 0:14:53]} Kf7 {[%emt 0:00:02]} 27. Bh4 {[%emt 0:02:13]} Ke8 {[%emt 0:08:46]} 28. Qh5+ {[%emt 0:00:17]} Ke7 {[%emt 0:01:17]} (28... g6 {is a better defense.} 29. Qxg6+ Kd7) 29. g6+ Ke8 30. Qg5 $2 {[%emt 0:06:00]} (30. Rd1 Rf5 31. Qg4 (31. Rxd3 Rxh5 32. Rd6 Rh6 $16)) 30... Rc7 $2 {[%emt 0:01:56]} (30... Kd7 31. Qe7+ Kc6 32. Qxe6+ Kc7 33. Qe7+ Kb8) 31. Qg4 {[%emt 0:00:26]} Rf3 {[%emt 0:02:48]} 32. Qxe6+ {[%emt 0:02:18]} Kf8 {[%emt 0:00:02]} 33. Be7+ {[%emt 0:00:55]} 1-0

[Event "9. Korbacher Open 2017"]
[Site "Korbach"]
[Date "2017.10.21"]
[Round "4"]
[White "Plaza Reino, Mercedes"]
[Black "Sakhra, Roman"]
[Result "1-0"]
[ECO "A03"]
[WhiteElo "1822"]
[BlackElo "1489"]
[Annotator "NA"]
[PlyCount "105"]
[EventDate "2017.??.??"]
[EventType "swiss"]
[EventCountry "GER"]
[SourceTitle "playchess.com"]
[Source "ChessBase"]
[SourceQuality "1"]
[TimeControl "40/5400+30:1800+30"]

{[%evp 8,105,0,-1,2,-13,18,2,17,-10,19,0,14,18,22,-6,198,205,205,214,233,236,293,248,222,258,328,32767,350,32767,32767,268,32767,32767,299,290,390,32767,372,32767,32767,381,365,405,397,415,456,32767,483,435,557,557,612,401,459,504,720,697,1083,604,586,32767,32767,32767,797,32767,32767,628,734,807,702,632,654,32767,32767,647,590,634,669,32767,646,755,670,32767,827,733,32767,32767,854,847,29993,747,29992,32767,32767,959,29990,29991,29993,29994]} 1. f4 {[%emt 0:00:00]} d5 {[%emt 0:00:04]} 2. b3 {[%emt 0:01:04]} Bf5 {[%emt 0:00:37]} 3. Nf3 {[%emt 0:00:17]} e6 {[%emt 0:00:13]} 4. e3 {[%emt 0:00:09]} Bd6 {[%emt 0:00:40]} 5. Bb2 {[%emt 0:00:22]} Nf6 {[%emt 0:00:18] LiveBook: 4 Partien} 6. Be2 {[%emt 0:00:09]} Nbd7 {[%emt 0:00:07]} 7. O-O {[%emt 0:00:12] A03: Bird's Opening with 1...d5} O-O {[%emt 0:00:04]} (7... h6 8. Ne5 a5 9. a4 c6 10. Nxd7 Qxd7 11. d3 Qe7 12. Nd2 Bc5 13. d4 Bd6 14. Bd3 O-O {0-1 (65) Manukian,G (2302)-Amanov,Z (2394) Los Angeles 2010}) 8. Ne5 {[%emt 0:01:23]} c5 {[%emt 0:10:47]} 9. d3 {[%emt 0:00:49]} Qc7 {[%emt 0:00:11]} 10. Nxd7 $146 {[%emt 0:02:35]} ({Predecessor:} 10. Qe1 Nxe5 11. fxe5 Bxe5 12. Nc3 Bxh2+ 13. Kh1 Bg3 {0-1 (44) Garcia Iturriaga,M (1961)-Dorado Reboredo,J Arteixo 2007}) 10... Nxd7 {[%emt 0:00:08]} 11. Qe1 {[%emt 0:22:59]} Be7 $2 {[%emt 0:17:45] [#]} (11... a6 $11) 12. g4 $1 {[%emt 0:10:16]} Bg6 {[%emt 0:07:54] [#]} 13. f5 $1 {[%emt 0:03:21]} exf5 {[%emt 0:01:34]} 14. gxf5 {[%emt 0:00:13]} Bf6 {[%emt 0:00:26]} 15. Bxf6 {[%emt 0:00:32]} Nxf6 {[%emt 0:00:06]} 16. fxg6 {[%emt 0:00:42]} Qe5 {[%emt 0:00:39]} 17. gxh7+ {[%emt 0:04:55]} Nxh7 {[%emt 0:02:00]} 18. Nd2 {[%emt 0:05:46]} Qxe3+ {[%emt 0:01:30]} 19. Kh1 {[%emt 0:01:38]} Rae8 {[%emt 0:02:17]} 20. Bf3 {[%emt 0:04:28]} Qh6 {[%emt 0:02:10]} 21. Qf2 {[%emt 0:02:06]} Re5 {[%emt 0:00:39]} 22. Rae1 {[%emt 0:03:39]} Rf5 {[%emt 0:00:42]} 23. Qe3 {[%emt 0:04:52]} Qd6 {[%emt 0:03:29]} 24. Bg2 {[%emt 0:05:13]} Rh5 {[%emt 0:02:29]} 25. Qf4 {[%emt 0:00:23]} Qd8 {[%emt 0:02:40]} 26. Nf3 {[%emt 0:06:07]} Nf6 {[%emt 0:04:39]} 27. Re5 {[%emt 0:03:49]} Re8 {[%emt 0:05:26]} 28. Rxe8+ {[%emt 0:01:18]} Qxe8 {[%emt 0:01:03]} 29. Re1 {[%emt 0:00:02]} Qd7 {[%emt 0:00:24]} 30. Qg3 {[%emt 0:05:39]} Ng4 {[%emt 0:01:26]} 31. Kg1 {[%emt 0:02:35]} d4 {[%emt 0:00:28]} (31... Nf6 $142 32. Qb8+ Kh7) 32. Bh3 {[%emt 0:01:13]} f5 {[%emt 0:01:17]} 33. Bxg4 {[%emt 0:00:26]} fxg4 {[%emt 0:00:06]} 34. Ne5 {[%emt 0:01:09]} Qf5 {[%emt 0:01:00]} 35. Nxg4 {[%emt 0:03:07]} Rg5 {[%emt 0:01:11]} 36. h3 {[%emt 0:00:01]} Rg6 {[%emt 0:01:39]} 37. Kh2 {[%emt 0:02:28]} Re6 {[%emt 0:00:52]} 38. Rxe6 {[%emt 0:00:25]} Qxe6 {[%emt 0:00:05]} 39. Qe5 {[%emt 0:01:31]} Qb6 {[%emt 0:01:33]} 40. Qe8+ {[%emt 0:00:58]} Kh7 {[%emt 0:30:13]} 41. Qe4+ {[%emt 0:03:42]} Kh8 {[%emt 0:00:00]} 42. a4 {[%emt 0:04:08]} Qb4 {[%emt 0:00:00]} 43. Qe2 {[%emt 0:01:20]} a6 {[%emt 0:00:00]} 44. Ne5 {[%emt 0:02:17]} Kg8 {[%emt 0:00:00]} 45. Nf3 {[%emt 0:00:33]} Qb6 {[%emt 0:00:00]} 46. Qe8+ {[%emt 0:04:23]} Kh7 {[%emt 0:00:00]} 47. Qh5+ {[%emt 0:00:26]} Kg8 {[%emt 0:00:00]} 48. Qe5 {[%emt 0:00:02]} Qb4 {[%emt 0:00:00]} 49. Qf4 {[%emt 0:00:47]} (49. Qe8+ $142 Kh7 50. Kg3 Qd2 51. Nxd2 Kh6 52. Nf3 b6 53. Kg4 g5 54. Qh8+ Kg6 55. Ne5#) 49... Qc3 {[%emt 0:00:00]} 50. Qd2 {[%emt 0:03:52]} Qa1 {[%emt 0:00:00]} 51. Kg2 {[%emt 0:01:04]} b5 {[%emt 0:00:00]} 52. Ng5 {[%emt 0:02:54]} Qb2 {[%emt 0:00:00]} 53. Qf2 {[%emt 0:00:19]} 1-0

[Event "9. Korbacher Open 2017"]
[Site "Korbach"]
[Date "2017.10.21"]
[Round "4"]
[White "Held, Martin"]
[Black "Mak, Nico"]
[Result "1/2-1/2"]
[ECO "C00"]
[WhiteElo "1821"]
[BlackElo "1799"]
[Annotator "NA RC"]
[PlyCount "22"]
[EventDate "2017.??.??"]
[EventType "swiss"]
[EventCountry "GER"]
[SourceTitle "playchess.com"]
[Source "ChessBase"]
[SourceQuality "1"]
[TimeControl "40/5400+30:1800+30"]

{[%evp 8,22,-40,-11,-11,-17,-16,-20,-1,-45,-39,-41,14,20,40,0,70]} 1. e4 {[%emt 0:00:00]} e6 {[%emt 0:00:14]} 2. d3 {[%emt 0:00:00]} d5 {[%emt 0:00:37]} 3. Nd2 {[%emt 0:00:00]} c5 {[%emt 0:02:58]} 4. Ngf3 {[%emt 0:02:30]} Nc6 {[%emt 0:01:49]} 5. g3 {[%emt 0:01:03]} Nf6 {[%emt 0:01:41]} 6. Bg2 {[%emt 0:00:57]} Be7 {[%emt 0:02:23]} 7. O-O {[%emt 0:00:35]} O-O {[%emt 0:01:08]} 8. e5 {[%emt 0:03:08]} Nd7 {[%emt 0:01:54]} 9. Re1 {[%emt 0:00:16]} f6 {[%emt 0:01:19]} 10. exf6 {[%emt 0:05:43]} Nxf6 {[%emt 0:00:03] LiveBook: 3 Partien} 11. Bh3 {[%emt 0:08:58]} Nb8 $14 (11... Qe8 $11) 1/2-1/2

[Event "9. Korbacher Open 2017"]
[Site "Korbach"]
[Date "2017.10.21"]
[Round "4"]
[White "Powalla, Christian"]
[Black "Hildebrand, Georg"]
[Result "1-0"]
[ECO "A40"]
[WhiteElo "1816"]
[BlackElo "1477"]
[Annotator "NA RC"]
[PlyCount "81"]
[EventDate "2017.??.??"]
[EventType "swiss"]
[EventCountry "GER"]
[SourceTitle "playchess.com"]
[Source "ChessBase"]
[SourceQuality "1"]
[TimeControl "40/5400+30:1800+30"]

{[%evp 8,81,59,62,77,95,116,100,205,206,182,197,232,234,282,284,370,424,440,451,451,452,32767,355,471,442,702,775,785,32767,32767,32767,32767,32767,851,1041,1365,967,1112,952,937,990,980,1077,1052,968,929,941,989,996,1800,2095,1923,2287,29981,2599,2179,32767,32767,32767,3319,3041,29988,32767,32767,29989,29991,29992,29992,29993,29993,29994,29994,29995,29997,29998]} 1. d4 {[%emt 0:00:00]} b6 {[%emt 0:14:46]} 2. e4 {[%emt 0:00:00]} Bb7 {[%emt 0:00:06]} 3. Bd3 {[%emt 0:00:16]} e6 {[%emt 0:00:30]} 4. Nf3 {[%emt 0:01:20]} Be7 {[%emt 0:00:45]} 5. c4 {[%emt 0:00:20] B00: Queen's Fianchetto Defence, Nimzowitsch Defence} (5. O-O Nf6 6. Qe2 c5 7. c3 cxd4 8. cxd4 d6 9. Nc3 Nbd7 10. a3 O-O 11. b4 Rc8 12. Bd2 Qc7 13. Rac1 Qb8 14. Rfe1 Ne8 15. Bb5 {0-1 (42) Klima,L (2339)-Lojek,M (2102) Karvina 2016}) 5... h6 {[%emt 0:00:33]} 6. Nc3 {[%emt 0:00:22]} a6 {[%emt 0:01:05]} 7. O-O $146 {[%emt 0:01:02]} ({Predecessor:} 7. Be3 g5 8. h3 d6 9. e5 Nd7 10. exd6 cxd6 11. d5 e5 12. Qd2 {½-½ (21) Schmehl,T (1719)-Hildebrand,G (1513) Bad Zwesten 2017}) 7... Bg5 {[%emt 0:00:21]} (7... d6 $16) 8. Nxg5 {[%emt 0:02:43]} hxg5 {[%emt 0:00:17]} 9. f4 {[%emt 0:04:35]} Nc6 {[%emt 0:04:23]} (9... gxf4 $142 10. Bxf4 d6) 10. d5 {[%emt 0:00:34]} ({Bloß nicht} 10. fxg5 $6 Nxd4 11. Qd2 Qe7 $16) 10... Nb4 {[%emt 0:06:00]} 11. Bb1 {[%emt 0:04:07]} ({Don't play} 11. fxg5 $6 Nxd3 12. Qxd3 Ne7 $18) 11... Qe7 {[%emt 0:01:20]} 12. a3 {[%emt 0:01:34]} Qc5+ {[%emt 0:07:17]} 13. Kh1 {[%emt 0:00:16]} Nxd5 {[%emt 0:02:02]} 14. cxd5 {[%emt 0:00:27]} ({But not} 14. exd5 g4 $18) 14... O-O-O {[%emt 0:01:19]} 15. Qe2 {[%emt 0:04:10]} gxf4 {[%emt 0:09:40]} 16. Bxf4 {[%emt 0:00:32]} f6 {[%emt 0:04:20]} (16... Nf6 $142 17. Bd3 Nh5 18. Bxa6 Nxf4 19. Rxf4 f6) 17. Bd3 {[%emt 0:04:13]} g5 {[%emt 0:07:07]} 18. Bg3 {[%emt 0:03:30]} Rf8 {[%emt 0:05:59]} 19. b4 {[%emt 0:02:33]} Qd4 {[%emt 0:07:13]} 20. Bxa6 {[%emt 0:01:31]} Qxc3 {[%emt 0:04:05] [#]} 21. Bxc7 $1 {[%emt 0:06:08]} Ne7 {[%emt 0:08:38]} 22. Rfc1 {[%emt 0:01:32]} Qxc7 {[%emt 0:03:45]} 23. Rxc7+ {[%emt 0:00:17]} Kxc7 {[%emt 0:00:14] [#]} 24. d6+ $1 {[%emt 0:00:20]} Kxd6 {[%emt 0:01:35]} 25. Bxb7 {[%emt 0:00:05]} Ng6 {[%emt 0:02:05]} 26. Rd1+ {[%emt 0:02:04]} Ke7 {[%emt 0:00:40]} 27. Qb5 {[%emt 0:00:41]} Ne5 {[%emt 0:00:37]} 28. Qxb6 {[%emt 0:01:18]} Rxh2+ {[%emt 0:00:58]} 29. Kxh2 {[%emt 0:00:24]} Rh8+ {[%emt 0:01:31]} 30. Kg1 {[%emt 0:00:13]} Rh4 {[%emt 0:02:02]} 31. Qd6+ {[%emt 0:00:45]} Kf7 {[%emt 0:00:35]} 32. a4 {[%emt 0:00:50]} Rg4 {[%emt 0:00:48]} 33. a5 {[%emt 0:00:52]} Nf3+ {[%emt 0:00:31]} 34. Kf2 {[%emt 0:00:12]} Ne5 {[%emt 0:00:39]} 35. a6 {[%emt 0:01:10]} Rf4+ {[%emt 0:00:18]} 36. Kg1 {[%emt 0:00:15]} Rg4 {[%emt 0:00:59]} 37. a7 {[%emt 0:00:11]} Nf3+ {[%emt 0:01:12]} 38. Kf2 {[%emt 0:00:07]} Ne5 {[%emt 0:00:23]} 39. a8=Q {[%emt 0:00:36]} Rf4+ {[%emt 0:00:57]} 40. Kg1 {[%emt 0:00:06]} Nc4 {[%emt 0:31:59]} 41. Qdf8+ {[%emt 0:30:23]} 1-0